bitfinex/quotes_ETHUSD_20240722
["timestamp","ask_amount","ask_price","bid_price","bid_amount"]
[1721661490408,0.59829583,3455.8,3455.1,0.28943]
[1721661490609,0.59829583,3455.9,3455.4,2.89402]
[1721661490930,0.59829583,3455.9,3455.2,2.89412]
[1721661490931,3.49181583,3456.0,3455.2,2.89411]
[1721661491126,2.89369,3455.8,3455.3,2.89408]
[1721661491285,0.59829583,3455.9,3455.3,2.89408]
[1721661491286,2.89361,3455.9,3455.3,2.89408]
[1721661491691,2.89361,3455.9,3455.3,2.89406]
[1721661491892,2.89369,3455.8,3455.3,0.318349]
[1721661492089,2.89361,3455.9,3454.5,5.10807246]
[1721661492090,2.89386,3455.6,3454.9,2.89439]
[1721661492375,3.49193583,3455.9,3455.2,2.89418]
[1721661492531,2.89377,3455.7,3455.2,2.89418]
[1721661492743,2.89382,3455.7,3455.1,2.89426]
[1721661492892,2.89369,3455.8,3455.2,2.89414]
[1721661493096,2.89369,3455.8,3455.2,2.89411]
[1721661493296,3.49180583,3456.0,3455.2,0.289411]
[1721661493650,1.19659166,3456.3,3455.7,2.89371]
[1721661493651,0.59829583,3456.3,3455.7,2.89371]
[1721661493794,0.59829583,3456.4,3455.8,2.89361]
[1721661494294,3.49152583,3456.4,3455.8,2.89361]
[1721661494489,0.59829583,3456.5,3455.8,2.89361]
[1721661494719,0.59829583,3456.6,3456.0,2.89346]
[1721661494934,2.89299,3456.7,3455.8,0.63661117]
[1721661494935,3.49123583,3456.7,3456.1,2.89341]
[1721661495094,2.89294,3456.7,3456.1,2.89341]
[1721661495313,0.59829583,3456.8,3456.3,2.89324]
[1721661495515,7.32,3456.9,3456.5,2.89309]
[1721661495690,2.89261,3457.1,3456.5,2.89309]
[1721661496113,2.89261,3457.1,3456.3,2.89324]
[1721661496114,0.59829583,3457.2,3456.1,2.89336]
[1721661496307,0.59829583,3457.2,3456.2,2.8933]
[1721661496308,2.89287,3456.8,3456.2,2.8933]
[1721661496624,2.89287,3456.8,3456.2,2.89333]
[1721661496828,2.89268,3457.0,3456.4,2.89316]
[1721661497031,2.89254,3457.2,3456.1,0.3472102]
[1721661497233,2.89269,3457.0,3456.1,2.89338]
[1721661497436,2.89285,3456.8,3456.2,2.8933]
[1721661497648,3.49086583,3457.2,3456.3,2.89326]
[1721661497824,2.8927,3457.0,3455.9,2.2642]
[1721661498130,2.8927,3457.0,3456.3,2.89321]
[1721661498653,2.89276,3456.9,3456.3,2.89321]
[1721661499410,2.89268,3457.0,3456.4,2.89315]
[1721661499617,2.89243,3457.3,3456.5,2.89303]
[1721661499882,10.21232,3457.5,3456.7,2.89292]
[1721661500027,2.89239,3457.4,3456.8,2.89281]
[1721661500225,10.21233,3457.5,3456.8,2.89281]
[1721661500568,7.32,3457.5,3456.8,2.89281]
[1721661500716,2.89234,3457.4,3456.8,2.89281]
[1721661501150,7.32,3457.5,3456.8,3.182081]
[1721661501356,10.21231,3457.5,3456.9,2.89272]
[1721661501529,10.21231,3457.5,3457.1,2.89258]
[1721661501530,7.32,3457.5,3457.1,2.89258]
[1721661501717,7.32,3457.5,3456.9,2.89272]
[1721661502065,7.32,3457.5,3457.0,2.89263]
[1721661502220,2.89197,3457.9,3457.2,2.8925]
[1721661502418,2.89201,3457.8,3457.2,2.8925]
[1721661502632,2.89201,3457.8,3457.0,2.89261]
[1721661502962,2.8923,3457.5,3456.8,3.182111]
[1721661503144,2.8923,3457.5,3456.9,2.8927]
[1721661503692,2.8923,3457.5,3456.4,5.4486]
[1721661503693,2.89248,3457.3,3456.6,2.89295]
[1721661503814,2.89223,3457.6,3456.8,2.89284]
[1721661504019,2.89241,3457.4,3456.8,2.89284]
[1721661504257,2.89235,3457.4,3456.8,2.89284]
[1721661504760,2.89235,3457.4,3456.9,2.89275]
[1721661504985,2.89222,3457.6,3456.9,2.89275]
[1721661505259,2.89236,3457.4,3456.9,2.89275]
[1721661505423,2.89236,3457.4,3456.6,2.89297]
[1721661505757,5.78477,3457.4,3456.8,2.8928]
[1721661505959,2.89264,3457.1,3456.4,5.4486]
[1721661506169,2.89203,3457.8,3456.6,2.89295]
[1721661506170,2.89249,3457.3,3456.6,2.89295]
[1721661506959,2.89249,3457.3,3456.7,2.89288]
[1721661507165,2.89249,3457.3,3456.7,3.44207817]
[1721661509268,2.89268,3457.0,3456.7,0.54919817]
[1721661509438,2.8926,3457.1,3456.5,3.0]
[1721661509764,2.8926,3457.1,3456.5,5.89309]
[1721661510264,2.89251,3457.2,3456.7,2.89293]
[1721661510665,2.89245,3457.3,3456.5,3.0]
[1721661510666,2.89264,3457.1,3456.5,5.89304]
[1721661510843,2.89264,3457.1,3456.5,3.0]
[1721661511171,2.89332,3456.3,3455.9,2.494]
[1721661511396,2.89326,3456.3,3455.7,2.89369]
[1721661511553,7.32,3457.1,3455.7,2.89369]
[1721661511554,2.89339,3456.2,3455.7,2.89369]
[1721661511754,2.8932,3456.4,3455.6,2.89385]
[1721661512089,2.8932,3456.4,3455.4,2.494]
[1721661512090,2.8932,3456.4,3455.9,2.8936]
[1721661512291,2.89315,3456.5,3456.0,2.89351]
[1721661512500,2.89315,3456.5,3455.4,2.494]
[1721661512667,2.89315,3456.5,3455.9,2.89359]
[1721661512668,2.89318,3456.4,3455.9,2.89359]
[1721661513071,2.89331,3456.3,3455.7,2.89376]
[1721661513258,5.78632,3456.5,3455.9,2.89359]
[1721661513456,2.89315,3456.5,3455.9,2.89359]
[1721661513656,2.89322,3456.4,3455.9,2.89359]
[1721661513858,7.32,3457.1,3455.7,2.89368]
[1721661514162,2.89335,3456.2,3455.7,2.89368]
[1721661514363,2.89331,3456.3,3455.7,2.89368]
[1721661514800,2.89348,3456.1,3455.5,2.89388]
[1721661515016,2.4581,3456.5,3454.9,2.89438]
[1721661515017,2.89381,3455.7,3454.9,2.89438]
[1721661515182,2.89381,3455.7,3454.8,5.24841]
[1721661515183,2.89406,3455.4,3454.8,5.24841]
[1721661515492,2.89406,3455.4,3454.7,2.8946]
[1721661515493,2.89408,3455.4,3454.7,2.8946]
[1721661515993,2.89408,3455.4,3454.7,2.89452]
[1721661516180,2.89387,3455.6,3454.3,2.3539]
[1721661516373,2.8943,3455.1,3454.5,2.89475]
[1721661516893,2.89418,3455.2,3454.6,2.89467]
[1721661517067,2.89406,3455.4,3454.7,2.89454]
[1721661517265,2.89388,3455.6,3454.8,2.89451]
[1721661517465,2.89378,3455.7,3454.8,2.89451]
[1721661517784,2.89404,3455.4,3454.8,0.589451]
[1721661518093,2.89411,3455.3,3454.8,0.589451]
[1721661518310,5.78801,3455.5,3454.8,3.483951]
[1721661518453,2.894,3455.5,3454.9,2.89443]
[1721661519075,2.89402,3455.4,3454.9,2.89443]
[1721661519313,2.89402,3455.4,3454.8,0.589451]
[1721661519482,2.89407,3455.4,3454.8,0.589451]
[1721661519688,2.89425,3455.2,3454.8,0.589451]
[1721661519889,2.89429,3455.1,3454.6,3.0]
[1721661520088,2.89429,3455.1,3454.5,2.89474]
[1721661520411,2.89429,3455.1,3454.6,3.0]
[1721661520412,2.8943,3455.1,3454.6,3.0]
[1721661520569,2.89415,3455.3,3454.6,5.89468]
[1721661520775,2.89434,3455.1,3454.6,3.0]
[1721661520976,2.89434,3455.1,3454.5,5.89476]
[1721661521510,2.89413,3455.3,3454.7,2.89455]
[1721661521511,2.89414,3455.3,3454.7,2.89455]
[1721661521718,2.89397,3455.5,3454.5,3.40477267]
[1721661521921,2.89397,3455.5,3454.7,2.89452]
[1721661522119,2.89407,3455.4,3454.8,2.89447]
[1721661522278,5.78828,3455.3,3454.6,5.78928]
[1721661522474,5.78828,3455.3,3454.7,3.83754427]
[1721661522475,2.89419,3455.2,3454.7,3.83754427]
[1721661522727,2.89419,3455.2,3454.7,0.94294427]
[1721661523014,2.89411,3455.3,3454.7,3.83750427]
[1721661523328,2.89405,3455.4,3454.8,2.89446]
[1721661523689,2.89396,3455.5,3454.9,2.8944]
[1721661524028,2.89396,3455.5,3454.7,3.83749427]
[1721661524316,2.89418,3455.2,3454.7,3.83749427]
[1721661524716,7.32,3455.8,3454.5,0.40477267]
[1721661524918,2.8945,3454.9,3454.4,3.0]
[1721661525230,2.89432,3455.1,3454.4,5.89484]
[1721661525385,2.89432,3455.1,3454.4,5.8948]
[1721661525719,2.89424,3455.2,3454.4,5.8948]
[1721661525883,2.89427,3455.1,3454.6,2.89468]
[1721661527185,2.89414,3455.3,3454.4,5.8948]
[1721661527186,2.89453,3454.8,3454.4,3.0]
[1721661527386,2.89453,3454.8,3454.0,2.89514]
[1721661527387,2.89473,3454.6,3454.3,3.0]
[1721661527688,2.89473,3454.6,3453.8,2.3909]
[1721661527689,2.89492,3454.4,3453.8,2.89531]
[1721661527999,2.89509,3454.2,3453.6,2.89552]
[1721661528204,2.8949,3454.4,3453.4,2.3906]
[1721661528520,9.5848,3455.0,3453.5,2.89556]
[1721661528810,9.5848,3455.0,3453.8,2.89535]
[1721661528811,2.89494,3454.3,3453.8,2.89535]
[1721661529011,2.89475,3454.6,3453.7,2.89536]
[1721661529012,2.8949,3454.4,3453.7,2.89536]
[1721661529181,2.8949,3454.4,3453.8,5.89531]
[1721661529712,2.89503,3454.2,3453.8,3.0]
[1721661529878,2.89511,3454.1,3453.7,3.0]
[1721661530077,2.89495,3454.3,3453.7,6.8058529]
[1721661530474,5.78997,3454.3,3453.7,6.8058529]
[1721661530722,2.89515,3454.1,3453.6,0.818189]
[1721661530943,2.89463,3454.7,3453.6,3.713649]
[1721661531096,2.89499,3454.3,3453.7,2.89543]
[1721661531432,2.89505,3454.2,3453.6,3.713649]
[1721661531643,2.89482,3454.5,3453.7,2.89537]
[1721661531925,2.89515,3454.1,3453.6,3.713649]
[1721661532074,2.89463,3454.7,3453.6,3.713649]
[1721661532075,11.17292,3454.9,3453.8,2.89531]
[1721661532276,2.89486,3454.4,3453.9,2.89527]
[1721661532554,2.89457,3454.8,3454.2,2.89497]
[1721661532736,7.32,3454.9,3454.3,2.89492]
[1721661532737,10.21444,3454.9,3454.3,2.89492]
[1721661533025,7.32,3454.9,3454.0,2.89514]
[1721661533228,2.89482,3454.5,3453.9,2.89523]
[1721661533525,2.89482,3454.5,3453.7,2.4897]
[1721661533526,2.89482,3454.5,3454.0,2.89519]
[1721661533851,2.8948,3454.5,3453.7,2.89544]
[1721661534000,2.89499,3454.3,3453.7,2.89544]
[1721661534334,5.78967,3454.5,3453.7,3.47449]
[1721661534476,2.89481,3454.5,3453.9,2.89527]
[1721661534976,8.27848,3454.9,3453.7,2.89543]
[1721661535179,8.27848,3454.9,3454.1,2.89509]
[1721661535180,2.89466,3454.7,3454.1,2.89509]
[1721661535384,10.21448,3454.9,3454.1,2.89509]
[1721661535385,7.32,3454.9,3454.1,2.89509]
[1721661535596,10.2145,3454.9,3454.1,2.89505]
[1721661536031,2.89452,3454.8,3454.3,2.89494]
[1721661536324,2.89452,3454.8,3454.2,2.89497]
[1721661536623,7.32,3454.9,3454.1,0.634027]
[1721661536829,7.32,3454.9,3454.4,2.89479]
[1721661537140,17.7227,3455.4,3454.6,2.89468]
[1721661537141,9.6127,3455.4,3454.6,2.89468]
[1721661537342,2.89427,3455.1,3454.4,2.89479]
[1721661537623,2.89427,3455.1,3454.4,2.89482]
[1721661537839,2.89474,3454.6,3453.9,3.0]
[1721661538038,2.89474,3454.6,3453.5,2.4875]
[1721661538039,2.89492,3454.4,3453.8,2.89535]
[1721661538181,7.32,3455.1,3453.9,3.0]
[1721661538182,2.89494,3454.3,3453.9,3.0]
[1721661538378,2.89486,3454.4,3453.9,3.0]
[1721661538635,2.89466,3454.7,3454.0,2.89517]
[1721661538784,2.89466,3454.7,3453.9,3.0]
[1721661538785,2.89481,3454.5,3453.9,5.89527]
[1721661539120,2.89481,3454.5,3453.9,3.0]
[1721661539121,2.89494,3454.3,3453.9,3.0]
[1721661539339,2.89498,3454.3,3453.9,3.0]
[1721661540128,2.89485,3454.4,3453.8,5.89535]
[1721661540426,2.4274,3454.7,3453.9,2.89527]
[1721661540635,2.89478,3454.5,3454.0,2.89512]
[1721661540780,2.4274,3454.7,3453.8,6.733585]
[1721661540983,2.89493,3454.4,3453.9,3.5686285]
[1721661541183,2.89487,3454.4,3453.9,3.5686285]
[1721661541450,5.7898,3454.4,3453.9,0.6733585]
[1721661541625,2.89487,3454.4,3453.9,0.6733585]
[1721661541920,2.89474,3454.6,3453.9,0.6733585]
[1721661541921,2.89494,3454.3,3453.9,0.6733585]
[1721661542123,2.89474,3454.6,3453.9,0.6733585]
[1721661542329,2.89458,3454.8,3454.0,3.63585435]
[1721661542631,2.89464,3454.7,3454.2,2.89497]
[1721661542795,2.89452,3454.9,3454.3,2.89493]
[1721661543125,7.32,3455.1,3454.0,3.63586435]
[1721661543126,2.89469,3454.6,3454.0,3.63586435]
[1721661543341,2.89452,3454.8,3454.1,1.02045229]
[1721661543637,5.7891,3454.8,3454.2,2.89498]
[1721661543823,2.89452,3454.8,3454.1,2.89505]
[1721661544132,2.89452,3454.8,3454.3,2.8949]
[1721661544427,2.89441,3455.0,3454.3,2.89488]
[1721661544634,2.89441,3455.0,3453.9,0.6733585]
[1721661544635,7.32,3455.5,3454.9,2.89438]
[1721661544939,7.32,3455.5,3454.7,2.89455]
[1721661544940,2.8941,3455.3,3454.7,2.89455]
[1721661545086,2.8941,3455.3,3454.8,2.89447]
[1721661545284,2.8941,3455.3,3454.7,0.289455]
[1721661545885,2.8941,3455.3,3454.6,2.89464]
[1721661546386,2.89431,3455.1,3454.6,2.89464]
[1721661546616,2.89431,3455.1,3454.4,2.8948]
[1721661546617,2.89425,3455.2,3454.0,2.4792]
[1721661546805,2.4372,3455.6,3454.2,2.89498]
[1721661546806,2.89405,3455.4,3454.2,2.89498]
[1721661546997,2.89405,3455.4,3454.4,2.89485]
[1721661546998,2.8944,3455.0,3454.4,2.89485]
[1721661547332,2.8944,3455.0,3453.8,5.89534]
[1721661547333,2.89419,3455.2,3454.6,2.89464]
[1721661547683,2.89419,3455.2,3454.7,2.8946]
[1721661547880,2.89448,3454.9,3454.5,0.578983]
[1721661548128,2.89448,3454.9,3454.3,2.8949]
[1721661548325,2.89435,3455.0,3454.3,2.8949]
[1721661548488,2.89435,3455.0,3454.5,2.89477]
[1721661548930,2.89435,3455.0,3454.3,2.8949]
[1721661549309,2.89435,3455.0,3454.3,2.89487]
[1721661549628,2.89435,3455.0,3454.5,2.89476]
[1721661550091,2.89396,3455.5,3454.4,3.184287]
[1721661550427,2.89419,3455.2,3454.5,2.89476]
[1721661550724,2.8944,3455.0,3454.4,3.184277]
[1721661550929,2.8944,3455.0,3454.5,3.5026857]
[1721661551446,2.89445,3454.9,3454.5,0.6079157]
[1721661551621,2.89478,3454.5,3453.9,2.89521]
[1721661551821,2.89466,3454.7,3453.5,2.3006]
[1721661551822,2.89499,3454.3,3453.5,2.3006]
[1721661552001,2.89499,3454.3,3453.6,2.89548]
[1721661552198,2.89499,3454.3,3453.5,0.23006]
[1721661552405,2.8951,3454.2,3453.5,3.12559]
[1721661552609,2.89511,3454.1,3453.5,0.23006]
[1721661552830,2.89552,3453.6,3452.5,2.89643]
[1721661553039,2.89552,3453.6,3452.1,15.29313024]
[1721661553040,2.89562,3453.5,3452.8,2.89612]
[1721661553246,2.89569,3453.4,3452.8,2.89612]
[1721661553612,2.89552,3453.6,3452.9,2.89605]
[1721661553825,2.89565,3453.5,3452.9,2.89605]
[1721661554140,2.89552,3453.6,3453.0,2.896]
[1721661554298,2.89562,3453.5,3452.9,2.89611]
[1721661554624,2.89582,3453.3,3452.7,2.89626]
[1721661554832,2.89582,3453.3,3452.7,3.475496]
[1721661555006,2.89582,3453.3,3452.8,3.0]
[1721661555400,2.89562,3453.5,3452.9,2.89611]
[1721661555829,2.89562,3453.5,3452.9,2.89607]
[1721661556040,2.4358,3453.8,3453.1,2.89594]
[1721661556041,2.89554,3453.6,3453.1,2.89594]
[1721661556209,2.89554,3453.6,3452.9,2.89603]
[1721661556416,5.79113,3453.6,3452.9,3.485633]
[1721661556622,2.4358,3453.8,3453.1,2.89593]
[1721661556941,2.89532,3453.9,3452.8,3.0]
[1721661557140,10.21512,3454.1,3453.5,2.89556]
[1721661557441,2.8951,3454.2,3453.5,2.89556]
[1721661557649,2.8951,3454.2,3453.1,2.3039]
[1721661557650,2.89487,3454.4,3453.7,2.89543]
[1721661557861,2.89487,3454.4,3453.5,2.89556]
[1721661558020,2.89487,3454.4,3453.6,2.89546]
[1721661558021,2.89503,3454.2,3453.6,2.89546]
[1721661558734,2.89485,3454.5,3453.8,2.89535]
[1721661559057,4.205868,3454.4,3453.8,2.89535]
[1721661559225,2.89491,3454.4,3453.8,5.79065]
[1721661559427,7.32,3454.6,3454.0,2.89513]
[1721661559665,7.32,3454.6,3454.1,5.79013]
[1721661559821,7.32,3454.6,3454.1,2.89504]
[1721661560386,7.91829583,3455.2,3454.8,2.89451]
[1721661560688,19.21424656,3455.7,3454.8,2.89451]
[1721661560689,12.59427,3455.7,3454.9,2.89437]
[1721661560975,7.32,3455.7,3455.2,2.89417]
[1721661561192,0.59829583,3456.1,3455.4,2.89397]
[1721661561352,2.89343,3456.1,3455.4,2.89397]
[1721661561683,3.49152583,3456.4,3455.7,2.89371]
[1721661561860,3.49152583,3456.4,3455.5,2.89393]
[1721661561861,4.60227996,3456.3,3455.5,2.89393]
[1721661562078,2.89343,3456.1,3455.5,2.89393]
[1721661562239,2.89374,3455.8,3455.0,2.2648]
[1721661562432,2.89361,3455.9,3455.2,2.89418]
[1721661562771,2.89377,3455.7,3455.0,5.89428]
[1721661562974,5.78728,3455.9,3455.0,5.89428]
[1721661563148,2.8937,3455.8,3455.2,2.89417]
[1721661565362,2.89361,3455.9,3455.3,2.89409]
[1721661565560,0.59829583,3456.2,3455.3,3.77291]
[1721661565783,2.6064237,3456.3,3455.5,2.89387]
[1721661565784,2.30727579,3456.3,3455.5,2.89387]
[1721661565942,5.78695,3456.1,3455.5,2.89387]
[1721661566283,2.89368,3455.9,3455.2,2.89414]
[1721661566486,2.89374,3455.8,3455.2,2.89414]
[1721661566633,2.8937,3455.8,3455.2,2.89417]
[1721661566833,2.8937,3455.8,3455.2,2.89411]
[1721661567073,5.78713,3456.0,3455.3,2.89409]
[1721661567274,3.77955932,3456.0,3455.3,2.89409]
[1721661567447,3.77953932,3456.0,3455.4,2.894]
[1721661567653,2.30727579,3456.3,3455.0,3.0]
[1721661567894,5.20059579,3456.3,3455.5,2.89386]
[1721661568088,5.20059579,3456.3,3455.0,5.89431]
[1721661568089,0.59829583,3456.3,3455.8,2.89368]
[1721661568408,3.49139583,3456.5,3455.8,2.89367]
[1721661568608,10.40599583,3456.6,3455.8,2.89367]
[1721661568787,2.89323,3456.4,3455.6,2.89382]
[1721661568996,1.32992258,3456.3,3455.6,2.89378]
[1721661569223,4.22321258,3456.3,3455.6,2.89378]
[1721661569382,1.32992258,3456.3,3455.6,2.89378]
[1721661569582,1.32992258,3456.3,3455.8,2.89363]
[1721661569800,2.89336,3456.2,3455.6,2.89379]
[1721661570003,1.32992258,3456.3,3455.6,2.89379]
[1721661570215,1.32992258,3456.3,3455.8,2.89367]
[1721661570590,4.22319258,3456.3,3455.7,2.89375]
[1721661570788,1.32992258,3456.3,3455.0,3.0]
[1721661570988,2.8932,3456.4,3455.8,2.89362]
[1721661571609,10.81135583,3456.6,3455.6,2.89381]
[1721661571825,2.89314,3456.5,3455.8,2.89362]
[1721661572136,2.89314,3456.5,3455.9,2.8936]
[1721661572283,0.59829583,3456.6,3456.1,2.89338]
[1721661572489,0.59829583,3456.8,3456.1,2.89338]
[1721661572689,2.89297,3456.7,3456.1,2.89338]
[1721661573249,2.89297,3456.7,3455.9,2.89355]
[1721661573385,2.89297,3456.7,3455.5,2.8939]
[1721661573587,2.89297,3456.7,3456.1,2.89336]
[1721661573793,1.82126412,3456.8,3455.4,5.4928]
[1721661574038,2.89318,3456.4,3455.8,2.89367]
[1721661574234,2.89318,3456.4,3455.8,2.89362]
[1721661574527,1.20340641,3456.7,3455.4,6.64138431]
[1721661574739,1.20340641,3456.7,3456.1,2.89342]
[1721661574740,2.89302,3456.6,3456.1,2.89342]
[1721661574937,2.89302,3456.6,3455.9,5.7871]
[1721661575091,2.89315,3456.5,3455.9,2.89352]
[1721661575287,0.69893164,3456.6,3455.4,6.64138431]
[1721661575492,2.89299,3456.7,3456.1,5.78673]
[1721661575797,7.32,3457.0,3456.4,2.89313]
[1721661575996,7.32,3457.0,3456.7,2.89287]
[1721661576433,7.32,3457.0,3456.1,2.89337]
[1721661576597,7.32,3457.0,3455.9,2.89356]
[1721661576799,2.89326,3456.3,3455.8,3.0]
[1721661577001,2.89352,3456.0,3455.4,2.89401]
[1721661577203,2.89358,3456.0,3455.1,2.89422]
[1721661577447,2.8934,3456.2,3455.4,2.89396]
[1721661577618,2.8934,3456.2,3454.8,2.703351]
[1721661577619,1.310662,3456.2,3455.6,2.89379]
[1721661577798,1.310662,3456.2,3455.1,2.89425]
[1721661577988,1.310662,3456.2,3455.6,2.89383]
[1721661578234,2.8932,3456.4,3455.6,2.8938]
[1721661578393,2.89333,3456.3,3455.8,2.89368]
[1721661578586,2.89319,3456.4,3455.8,5.7873]
[1721661578788,2.89319,3456.4,3455.2,2.89416]
[1721661578789,2.89328,3456.3,3455.6,2.89381]
[1721661578990,2.89328,3456.3,3455.7,2.89372]
[1721661579290,2.89318,3456.4,3455.6,2.8938]
[1721661579500,2.89335,3456.2,3455.7,2.89376]
[1721661579795,3.914588,3456.3,3455.7,2.89376]
[1721661580004,3.914588,3456.3,3455.7,2.89371]
[1721661580209,3.914588,3456.3,3455.6,2.8938]
[1721661580432,2.89349,3456.1,3455.3,2.89405]
[1721661580740,3.5743018,3456.1,3455.5,2.89392]
[1721661581104,0.6808118,3456.1,3455.7,2.89375]
[1721661581305,3.914618,3456.3,3455.7,2.89375]
[1721661581703,3.914618,3456.3,3455.7,2.89371]
[1721661581953,1.021318,3456.3,3455.7,2.8937]
[1721661582441,1.021318,3456.3,3455.9,2.89359]
[1721661582643,10.21315,3456.5,3455.5,2.89386]
[1721661582644,7.32,3456.5,3455.5,2.89386]
[1721661583094,7.32,3456.5,3455.6,5.28047075]
[1721661583291,7.32,3456.5,3456.3,2.89319]
[1721661583497,2.89281,3456.9,3456.3,2.89319]
[1721661583925,2.89293,3456.7,3456.1,2.89335]
[1721661584086,7.32,3457.1,3456.0,2.89347]
[1721661584087,2.89306,3456.6,3456.0,2.89347]
[1721661584315,2.89322,3456.4,3455.8,2.89368]
[1721661584494,2.89322,3456.4,3455.8,2.89362]
[1721661584836,2.89326,3456.3,3455.2,8.31176]
[1721661584999,5.28107,3456.5,3455.8,2.89362]
[1721661585197,2.89297,3456.7,3456.0,2.89345]
[1721661585514,2.89331,3456.3,3455.7,2.8937]
[1721661585837,2.89315,3456.5,3455.8,2.89366]
[1721661585838,2.89318,3456.4,3455.8,2.89366]
[1721661586017,2.89331,3456.3,3455.7,2.89374]
[1721661586217,2.89331,3456.3,3455.8,2.89368]
[1721661586424,2.89319,3456.4,3455.8,2.89364]
[1721661586636,4.153067,3456.7,3455.8,2.89364]
[1721661586637,2.89306,3456.6,3456.0,2.89346]
[1721661586825,2.8928,3456.9,3456.0,2.89346]
[1721661587146,2.3879,3457.0,3456.0,2.89346]
[1721661587351,2.89322,3456.4,3455.8,5.78728]
[1721661587559,2.89316,3456.5,3455.8,2.89367]
[1721661587560,2.89332,3456.3,3455.8,2.89367]
[1721661587714,2.89318,3456.4,3455.9,2.89358]
[1721661587911,2.8931,3456.5,3456.0,2.89347]
[1721661588112,2.89281,3456.9,3456.1,2.89343]
[1721661588366,1.854424,3456.9,3456.1,2.89343]
[1721661588571,2.89289,3456.8,3455.7,2.89374]
[1721661588849,2.3879,3457.0,3455.6,2.255]
[1721661588850,2.89304,3456.6,3456.0,2.89347]
[1721661589030,2.8931,3456.5,3456.0,2.89347]
[1721661589231,2.8931,3456.5,3456.0,5.78693]
[1721661589435,2.89304,3456.6,3456.0,2.89347]
[1721661589613,2.89292,3456.8,3456.3,2.89322]
[1721661589813,3.710267,3456.8,3456.3,2.89322]
[1721661590211,2.89264,3457.1,3456.5,2.89304]
[1721661590442,5.78531,3457.1,3456.5,2.89304]
[1721661590758,2.89268,3457.0,3456.5,2.89304]
[1721661591056,2.89268,3457.0,3456.2,2.8933]
[1721661591057,2.89285,3456.8,3456.2,2.8933]
[1721661591207,2.89285,3456.8,3456.3,2.89322]
[1721661591406,2.89276,3456.9,3456.4,2.89317]
[1721661591849,2.89276,3456.9,3456.1,2.89337]
[1721661592065,2.89276,3456.9,3455.9,2.3037]
[1721661592066,2.89298,3456.7,3455.9,2.89352]
[1721661592272,2.89285,3456.8,3456.2,2.89334]
[1721661592464,4.203341,3456.9,3456.3,2.89322]
[1721661592821,4.203341,3456.9,3456.3,2.89321]
[1721661593164,2.89284,3456.8,3456.3,2.89321]
[1721661594229,2.89293,3456.7,3456.1,2.89335]
[1721661594574,2.8932,3456.4,3455.9,2.89356]
[1721661595026,2.89302,3456.6,3456.0,2.89345]
[1721661595226,7.32,3457.2,3456.3,2.8932]
[1721661595493,7.32,3457.2,3456.2,2.89329]
[1721661595494,9.59971958,3457.2,3456.2,2.89329]
[1721661595770,2.89269,3457.0,3456.4,2.89313]
[1721661595929,2.89269,3457.0,3456.4,5.78626]
[1721661596132,2.89269,3457.0,3456.5,2.89309]
[1721661596531,2.89264,3457.1,3456.5,2.89305]
[1721661596727,9.59971958,3457.2,3456.7,2.89291]
[1721661596973,2.27971958,3457.2,3456.7,2.89291]
[1721661597130,5.34135,3457.3,3456.7,2.89291]
[1721661597326,2.4489,3457.3,3456.5,2.89305]
[1721661597541,5.34138,3457.3,3456.5,2.89305]
[1721661597758,2.89261,3457.1,3456.1,2.89339]
[1721661597927,2.89252,3457.2,3456.7,2.89289]
[1721661598331,2.89252,3457.2,3456.6,2.89297]
[1721661598580,2.89252,3457.2,3456.6,2.89296]
[1721661598936,2.84252,3457.2,3456.7,2.89293]
[1721661599490,2.4489,3457.3,3456.9,2.89274]
[1721661599778,2.89245,3457.3,3456.7,2.89288]
[1721661600064,2.89252,3457.2,3456.6,2.89301]
[1721661600275,2.89264,3457.1,3456.5,2.89305]
[1721661600473,2.89264,3457.1,3456.4,2.89314]
[1721661600674,2.89284,3456.8,3456.5,0.289314]
[1721661600888,5.2519,3456.9,3456.0,2.89347]
[1721661601183,5.2519,3456.9,3456.2,2.89331]
[1721661601184,2.89294,3456.7,3456.2,2.89331]
[1721661601333,2.89294,3456.7,3456.0,2.89345]
[1721661601334,2.89306,3456.6,3456.0,2.89348]
[1721661601539,2.89306,3456.6,3455.8,2.4915]
[1721661601540,2.89292,3456.8,3456.2,2.89329]
[1721661601847,5.25187,3456.9,3456.2,2.89329]
[1721661602069,2.89297,3456.7,3456.2,2.89329]
[1721661602284,2.89285,3456.8,3456.3,2.89326]
[1721661602434,2.89328,3456.3,3455.6,2.89381]
[1721661602776,2.89295,3456.7,3455.7,2.89371]
[1721661602777,2.8934,3456.2,3455.7,2.89371]
[1721661602930,2.89327,3456.3,3455.7,2.89369]
[1721661603282,2.89327,3456.3,3455.8,2.89363]
[1721661603432,2.89318,3456.4,3455.9,2.8936]
[1721661603632,10.21307,3456.6,3456.1,2.89341]
[1721661603633,10.21306,3456.6,3456.1,2.89341]
[1721661603833,7.32,3456.6,3456.2,2.8933]
[1721661604098,7.32,3456.6,3456.4,2.89316]
[1721661604234,3.49092583,3457.1,3456.2,3.47196]
[1721661604429,2.89268,3457.0,3456.4,2.89312]
[1721661604634,0.59829583,3457.1,3455.6,5.255]
[1721661604887,22.64251,3457.2,3455.4,2.89399]
[1721661604888,3.49084583,3457.2,3456.6,2.89297]
[1721661605186,2.89255,3457.2,3456.6,2.89297]
[1721661605350,3.49084583,3457.2,3456.6,2.89297]